Cogmind - Beta 16 @@@ ROGUE MODE // 2025.12.30 @ 06:26:31 Player: GGOBC-006 Result: Destroyed by BV-123(R) with Subdweller Laser Performance ------------- Evolutions (0) 0 Regions Visited (3) 600 Robots Destroyed (23) 115 Value Destroyed (212) 212 Prototype IDs (12) 240 Alien Tech Used (0) 0 Bonus (0) 0 TOTAL SCORE: 1167 Bonus ------- None Cogmind --------- Core Integrity 0/250 Matter 300/300 Energy 110/125 System Corruption 0% Temperature Cool (6) Movement Flying (120) Ox1 Location -10/Subcaves Parts ------- > --- POWER (1) -------- Light Ion Engine > --- PROPULSION (2) --- Flight Unit > --- UTILITY (2) ------ (None) > --- WEAPON (2) ------- Riot Gun Mining Laser > --- INVENTORY (5) ---- Wheel Flightbrick Peak State ------------ > --- POWER ------------ Ion Engine > --- PROPULSION ------- Wheel Wheel > --- UTILITY ---------- (None) > --- WEAPON ----------- Riot Gun Mining Laser > --- INVENTORY -------- Flightbrick [Rating: 10] Favorites ----------- Power Ion Engine Engine Ion Engine Propulsion Wheel Wheel Wheel Flight Unit Flight Unit Utility Seismic Detector Device Seismic Detector Protection Light Armor Plating Weapon Light Assault Rifle Energy Gun Riot Gun Ballistic Gun Light Assault Rifle Special Weapon Mining Laser Build | -11 -10 -10 -10 ------- Run | Yrd Mat Min Sub Slots Evolved . | . . . . Power . | . . . . Propulsion . | . . . . Utility . | . . . . Weapon . | . . . . Parts Attached 18 | 6 6 . 6 Power 3 | 1 1 . 1 Engine 3 | 1 1 . 1 Core . | . . . . Reactor . | . . . . Propulsion 7 | 3 2 . 2 Treads . | . . . . Leg . | . . . . Wheel 5 | 3 2 . . Hover . | . . . . Flight 2 | . . . 2 Utility 2 | 1 1 . . Device 1 | 1 . . . Storage . | . . . . Processor . | . . . . Hackware . | . . . . Protection 1 | . 1 . . Artifact . | . . . . Weapon 6 | 1 2 . 3 Energy Gun 3 | 1 . . 2 Energy Cannon . | . . . . Ballistic Gun 2 | . 2 . . Ballistic Cannon . | . . . . Launcher . | . . . . Special Weapon 1 | . . . 1 Impact Weapon . | . . . . Slashing Weapon . | . . . . Piercing Weapon . | . . . . Special Melee Weapon . | . . . . Unidentified Prototypes . | . . . . Parts Lost 6 | . 5 . 1 Power 1 | . 1 . . Propulsion 2 | . 1 . 1 Utility 2 | . 2 . . Weapon 1 | . 1 . . Highest Loss Streak 5 | . 5 . 1 To Critical Strikes . | . . . . Average Backups 1 | . 1 1 1 Power . | . . . . Propulsion . | . . . . Utility . | . . . . Weapon . | . . 1 1 Tool/Special . | . . . . Unused Backups 2 | . . . 2 Power . | . . . . Propulsion 2 | . . . 2 Utility . | . . . . Weapon . | . . . . Tool/Special . | . . . . Average Slot Usage (%) 63 | . 49 71 69 Engine 11 | . 4 14 14 Wheel 24 | . 22 28 24 Flight 2 | . . . 3 Device 1 | . 4 . . Energy Gun 7 | . 3 . 11 Ballistic Gun 11 | . 11 28 8 Special Weapon 4 | . . . 6 Peak Build Rating 10 | 5 6 5 10 Average Rating 5 | 3 3 5 7 On Entrance 3 | . 5 5 5 Avg Prop Armor Cover (%) . | . . . . Naked Turns . | . . . . Heaviest Build 11 | 8 11 7 11 Greatest Support 20 | 20 20 20 20 Greatest Overweight (x) 1 | . . . 1 Average Overweight (x) . | . . . . Largest Inventory Capacity 5 | 5 5 5 5 Average Capacity 5 | 5 5 5 5 Most Carried 5 | 2 3 1 5 Average Carried 1 | . 1 1 2 Final Capacity 5 | 5 5 5 5 Final Carried 5 | 1 1 1 5 Class Distribution -------------------- 100% | Mutant Dominant Class ---------------- Mutant | -10/Materials Mutant | -10/Mines Mutant | -10/Subcaves Resources | -11 -10 -10 -10 ----------- Run | Yrd Mat Min Sub Matter Collected 528 | 250 148 . 130 Remotely . | . . . . Salvage Created 690 | 249 395 . 46 Parts 45 | 17 22 . 6 Haulers Intercepted . | . . . . Recyclers Shooed 5 | . 5 . . Parts Field Recycled . | . . . . Retrieved Matter . | . . . . Parts Self-Destructed 6 | . . . 6 Prevented . | . . . . Parts Restored . | . . . . Kills | -11 -10 -10 -10 ------- Run | Yrd Mat Min Sub Combat Hostiles Destroyed 7 | . 4 . 3 Guns 7 | . 4 . 3 Classes Destroyed 7 | 3 4 . . Worker 5 | 2 3 . . Builder 2 | . 2 . . Tunneler 5 | 5 . . . Recycler 3 | 1 2 . . Watcher 1 | . 1 . . Swarmer 5 | . 2 . 3 Grunt 2 | . 2 . . Best Kill Streak 4 | 4 4 . 3 Combat Bots Only 3 | . 3 . 3 Max Kills in Single Turn 1 | 1 1 . 1 Gunslinging . | . . . . Exploded . | . . . . Melee . | . . . . Uniques/NPCs Destroyed . | . . . . Combat | -11 -10 -10 -10 -------- Run | Yrd Mat Min Sub Hostile Shots Fired 93 | . 83 . 10 Missed 34 | . 33 . 1 Hits 59 | . 50 . 9 Projectile 59 | . 50 . 9 AOE 1 | . 1 . . Damage Taken 683 | 24 560 . 99 Core 267 | 4 225 . 38 Absorbed by Shields . | . . . . Core Remaining (%) 98 | 98 . . . Volleys Fired 210 | 28 126 . 56 Largest 2 | 1 1 . 2 Hottest 120 | 40 40 . 120 Shots Fired 219 | 28 126 . 65 Gun 177 | 28 126 . 23 Cannon . | . . . . Launcher . | . . . . Special 42 | . . . 42 Kinetic 133 | . 123 . 10 Thermal 42 | . . . 42 Explosive . | . . . . Electromagnetic 44 | 28 3 . 13 Robot Hit Streak 12 | 10 8 . 12 Robot Miss Streak 3 | 2 3 . 3 Penetration Max . | . . . . Secondary Targets . | . . . . Shots Hit Robots 116 | 20 69 . 27 Core Hits 45 | 8 27 . 10 Critical Kills . | . . . . Critical Parts Destroyed 1 | . 1 . . Critical Strikes 1 | . 1 . . Destroy 1 | . 1 . . Melee Attacks . | . . . . Impact . | . . . . Slashing . | . . . . Piercing . | . . . . Sneak Attacks . | . . . . Combat Hostiles . | . . . . Follow-up Attacks . | . . . . Damage Inflicted 1499 | 385 573 . 541 Guns 954 | 276 545 . 133 Cannons . | . . . . Explosions 137 | 109 28 . . Melee . | . . . . Ramming . | . . . . Kinetic 534 | . 534 . . Thermal 545 | 109 28 . 408 Explosive . | . . . . Electromagnetic 420 | 276 11 . 133 Impact . | . . . . Slashing . | . . . . Piercing . | . . . . Highest Corruption . | . . . . Average Corruption . | . . . . Corruption Purged . | . . . . Corruption Blocked . | . . . . Overload Shots . | . . . . Overflow Damage . | . . . . Projectiles . | . . . . Explosions . | . . . . Melee . | . . . . Knockbacks . | . . . . Impact . | . . . . Kinetic . | . . . . Secondary . | . . . . Self-Inflicted Damage 60 | 25 35 . . Shots 3 | 2 1 . . Rammed . | . . . . Targets Rammed . | . . . . Kicked . | . . . . Crushed . | . . . . Highest Temperature 24 | 24 24 . 10 Average Temperature 8 | 15 6 . 10 Received Heat Transfer 108 | . 96 . 12 Siege Activations . | . . . . Martial Activations . | . . . . Shielding Activations . | . . . . Robots Disrupted . | . . . . Combat Hostiles . | . . . . Robots Corrupted . | . . . . Combat Hostiles . | . . . . Parts Fried . | . . . . Impact Corruptions . | . . . . Robots Melted . | . . . . Combat Hostiles . | . . . . Parts Melted . | . . . . Heat Transferred 1000 | 100 50 . 850 Parts Sabotaged . | . . . . Parts Stolen . | . . . . Parts Stripped . | . . . . Power Chain Reactions 5 | 3 2 . . Alert | -11 -10 -10 -10 ------- Run | Yrd Mat Min Sub Maximum Alert Level . | . . . . Low Security (%) 100 | 100 100 100 . Level 1 . | . . . . Level 2 . | . . . . Level 3 . | . . . . Level 4 . | . . . . Level 5 . | . . . . High Security . | . . . . Max Security . | . . . . Peak Influence 50 | 10 50 . . Initial 6 | . 6 . . Average 10 | 3 15 . . Influence Increases 313 | 40 190 . 83 Destroy 0b10 Robot/C 140 | . 80 . 60 Destroy 0b10 Robot/NC 80 | 40 40 . . Destroy Leader 12 | . 2 . 10 Allied During Kill 13 | . . . 13 Successful Hack 4 | . 4 . . Disable Machine 15 | . 15 . . Destroy Structure 4 | . 4 . . Lose Combat Pursuer 45 | . 45 . . Influence Decreases 288 | 30 200 . 58 Entered New Map 4 | . 4 . . Time Decay 229 | 30 151 . 48 Lost Part 49 | . 39 . 10 Purge Threat 6 | . 6 . . Squads Dispatched 1 | . 1 . . Investigation 1 | . 1 . . Extermination . | . . . . Reinforcement . | . . . . Assault . | . . . . Garrison . | . . . . Intercept . | . . . . Searches Triggered . | . . . . Construction Impeded . | . . . . Haulers Reinforced . | . . . . Active Scanning Responses . | . . . . Cargo Convoy Interrupts . | . . . . Stealth | -11 -10 -10 -10 --------- Run | Yrd Mat Min Sub Distress Signals . | . . . . Communications Jammed . | . . . . Distress Signals . | . . . . Times Spotted 17 | . 13 . 4 Peak Tracking Total 9 | . 9 . 3 Tactical Retreats 2 | . 2 . . Traps | -11 -10 -10 -10 ------- Run | Yrd Mat Min Sub Traps Triggered 1 | . 1 . . Indirectly . | . . . . Trap Hack Attempts . | . . . . Triggered . | . . . . Disarmed . | . . . . Reprogrammed . | . . . . Reused . | . . . . Traps Extracted . | . . . . Installed . | . . . . Triggered . | . . . . Machines | -11 -10 -10 -10 ---------- Run | Yrd Mat Min Sub Machines Disabled 2 | . 1 . 1 Max in Single Turn 1 | . 1 . 1 Machines Repaired . | . . . . Machines Dismantled . | . . . . Machines Sabotaged . | . . . . Overloaded Fab Kills . | . . . . Hacking | -11 -10 -10 -10 --------- Run | Yrd Mat Min Sub Machines Accessed 5 | . 4 . 1 Terminals 3 | . 3 . . Fabricators . | . . . . Repair Stations . | . . . . Recycling Units 1 | . 1 . . Scanalyzers . | . . . . Garrison Access . | . . . . Total Hacks 22 | . 13 . 9 Successful 14 | . 5 . 9 Failed 8 | . 8 . . Catastrophic 2 | . 2 . . Database Lockouts . | . . . . Manual 8 | . 8 . . Terminals 10 | . 10 . . Fabricators . | . . . . Repair Stations . | . . . . Recycling Units 3 | . 3 . . Scanalyzers . | . . . . Garrison Access . | . . . . Terminal Hacks 11 | . 2 . 9 Record 8 | . . . 8 Unreport Threat 1 | . 1 . . Locate Traps 1 | . 1 . . Proto ID Catalog 1 | . . . 1 Fabricator Hacks . | . . . . Repair Station Hacks . | . . . . Recycling Unit Hacks 3 | . 3 . . Process 1 | . 1 . . Report Inventory 1 | . 1 . . Retrieve Matter 1 | . 1 . . Scanalyzer . | . . . . Garrison Access Hacks . | . . . . Unauthorized Hacks . | . . . . Terminals . | . . . . Fabricators . | . . . . Repair Stations . | . . . . Recycling Units . | . . . . Scanalyzers . | . . . . Garrison Access . | . . . . Data Cores Recovered . | . . . . Used . | . . . . Hacking Detections 3 | . 3 . . Full Trace Events 2 | . 2 . . Feedback Events . | . . . . Feedback Blocked . | . . . . Robot Schematics Acquired . | . . . . Robots Built . | . . . . Authchips . | . . . . Time . | . . . . Total Robot Build Rating . | . . . . Part Schematics Acquired . | . . . . Parts Built . | . . . . Authchips . | . . . . Time . | . . . . Total Part Build Rating . | . . . . Part Studies Acquired . | . . . . Parts Repaired . | . . . . Time . | . . . . Parts Recycled . | . . . . Recycled Matter 78 | . 78 . . Retrieved Matter 78 | . 78 . . Retrieved Components . | . . . . Parts Scanalyzed . | . . . . Part Schematics Acquired . | . . . . Parts Damaged . | . . . . Bothacking | -11 -10 -10 -10 ------------ Run | Yrd Mat Min Sub Used RIF Installer . | . . . . Robots Hacked . | . . . . Non-combat . | . . . . Combat . | . . . . Robot Hacks Applied . | . . . . Relay Couplers Released . | . . . . Fabnet Peak Effective % . | . . . . Robots Rewired . | . . . . Allies Hacked . | . . . . Hacks Repelled . | . . . . Allies | -11 -10 -10 -10 -------- Run | Yrd Mat Min Sub Total Allies 5 | . . 5 . Largest Group 5 | . . 5 5 Highest-Rated Group 89 | . . 89 89 Highest-Rated Ally 31 | . . 31 31 Total Orders . | . . . . Ally Attacks . | . . . . Total Damage . | . . . . Kills . | . . . . Allies Corrupted . | . . . . Allies Melted . | . . . . Intel | -11 -10 -10 -10 ------- Run | Yrd Mat Min Sub Active Infowar (turns) 155 | 32 123 . . Seismic 155 | 32 123 . . Robot Analysis Total . | . . . . Derelict Logs Recovered 2 | . . . 2 Drone Launches . | . . . . Drone Recoveries . | . . . . Exploration | -11 -10 -10 -10 ------------- Run | Yrd Mat Min Sub Turns Passed 1514 | 131 415 108 860 Spaces Moved 1227 | 64 219 102 842 Core 2 | 2 . . . Treads . | . . . . Legs . | . . . . Wheels 980 | 62 219 102 597 Hover . | . . . . Flight 245 | . . . 245 Fastest Speed 37 | 50 80 80 37 Average Speed 71 | 79 80 80 67 Slowest Speed 117 | 80 80 80 117 Overloaded Moves . | . . . . Propulsion Burnouts . | . . . . Robots Hopped . | . . . . Potential Cave-ins . | . . . . Cave-ins Triggered . | . . . . Exploration Rate (%) 26 | 4 42 18 43 Regions Visited 3 Branch Regions 2 Pre-discovered Areas . | . . . . Known Exits Taken . | . . . . Unknown Exits Taken 3 | 1 1 1 . Scrap Searched 1 | . . . 1 Spaces Dug . | . . . . Terrain Destroyed 7 | 4 3 . . Melee . | . . . . Projectile . | . . . . AOE 7 | 4 3 . . Terrain Rammed . | . . . . Walls Destroyed . | . . . . Machines Disabled . | . . . . Actions | -11 -10 -10 -10 --------- Run | Yrd Mat Min Sub Total 1582 | 113 356 128 985 Wait 108 | 14 1 27 66 Move 1224 | 63 218 101 842 Hop . | . . . . Pick Up 7 | 1 3 . 3 Fast Attach 12 | 5 3 . 4 Attach 3 | . 2 . 1 Detach 2 | . . . 2 Swap 7 | 1 1 . 5 Drop 9 | 1 2 . 6 Fire 210 | 28 126 . 56 Melee . | . . . . Ram . | . . . . Kick . | . . . . Crush . | . . . . Escape Stasis . | . . . . Rewire . | . . . . Trap . | . . . . Miscellaneous . | . . . . Route ------- -11/Scrapyard -10/Materials -10/Mines (discovered 2 exits: [*Mat] / *Sub) -10/Subcaves History --------- Turn | Location | Event 18 | -11/Scrapyard | Discovered new exit (range 15) 132 | -11/Scrapyard | Entered Materials 250 | -10/Materials | Core integrity fell below 50% 276 | -10/Materials | Core integrity fell below 20% 286 | -10/Materials | Lost 5 parts (1p1n2u1w) 306 | -10/Materials | Build established: Mutant 524 | -10/Materials | Discovered new exit (range 9) 547 | -10/Materials | Entered Mines 548 | -10/Mines | Discovered new exit (range 15) 578 | -10/Mines | Assisted by bots powering up and referring to "LRC-V3" 636 | -10/Mines | Discovered new exit (range 6) 655 | -10/Mines | Entered Subcaves 655 | -10/Subcaves | Accompanied by 5 allies 660 | -10/Subcaves | Led the pair of lost Derelicts to an unsafe place 689 | -10/Subcaves | A swath of the cavern ceiling suddenly collapsed 714 | -10/Subcaves | Learned 4 Materials zone layouts 716 | -10/Subcaves | Shifting Twisted Machinery released Flamer 897 | -10/Subcaves | Shifting Twisted Machinery released Sub. Monowheel 1056 | -10/Subcaves | Shifting Twisted Machinery released Mak. Hacking Suite 1060 | -10/Subcaves | Shifting Twisted Machinery released Riot Gun 1279 | -10/Subcaves | Visited 4L-MR0's lab 1296 | -10/Subcaves | Found Flightbrick 1515 | -10/Subcaves | Destroyed by BV-123(R) with Subdweller Laser Last Messages --------------- Testing Chamber breached. Dropped Lgt. Assault Rifle. Dropped Riot Gun. Dropped Sub. Monowheel. Acquired Flightbrick. Acquired 2 matter. S-10 Pest destroyed. Acquired Flight Unit. Corrupted Lgt. Ion Engine fries itself beyond repair. Lgt. Assault Rifle fries itself beyond repair. Dropped Wheel. Acquired Flight Unit. Dropped Ion Engine. Acquired Lgt. Ion Engine. Lgt. Assault Rifle fries itself beyond repair. Acquired 35 matter. Acquired 3 matter. BV-123(R): "LEAVESUB!" Flight Unit destroyed. Map ----- +----------------------------------------------------+ | ?????????????????????????????????????????????????? | | ?????????????????????????????????????????????????? | | ?????????????????????????????????????????????????? | | ?????????????????????????????????????????????????? | | ?????????????????????????????????????????????????? | | ?????????????????????????????????????????????????? | | ?????????????????????????????????????????????????? | | ?????????????????????????????????????????????????? | | ?????????????????????????????????????????????????? | | ?????????????????????????????????????????????????? | | ?????????????????????????????????????????????????? | | ?????????????????????????????????????????????????? | | ?????????????????????????????????????????????????? | | ?????????????????????????????????????????????????? | | ?????????????????????????????????????????????????? | | ?????????????????????????????????????????????????? | | ???? ????????????????????????????????????????????? | | ?? ???????????????????????????????????????????? | | ??# ??????????????????????????????????????????? | | ??# ??????????????????????????????????????????? | | ?## ?????????????????????????????????????????? | | ## % ????????????#########????????????????????? | | # #???????????## ###??????????????????? | | ?# #????????????#" """ "#??????????????????? | | ## #???????????##" """ ""#??????????????????? | | ########????#;" "R@ """#??????????????????? | | ##??### ""### "###??????????????????? | | #### ""##?? #????????????????????? | | ## ## ##??? #???????????????????? | | ### ###???? ??????????????????? | | ?## ##?????? ?????????????????? | | ## % ##??????? ????????????????? | | # ##### ##????????? ???????????????? | | ##???## ####??????????# ??????????????? | | ##?????###?????????????? ?????????????? | | ###??????????????????????? " #????????????? | | ###?????????????????????????##?## ##????????????? | | ?????????????????????????????????##??????????????? | | ?????????????????????????????????????????????????? | | ?????????????????????????????????????????????????? | | ?????????????????????????????????????????????????? | | ?????????????????????????????????????????????????? | | ?????????????????????????????????????????????????? | | ?????????????????????????????????????????????????? | | ?????????????????????????????????????????????????? | | ?????????????????????????????????????????????????? | | ?????????????????????????????????????????????????? | | ?????????????????????????????????????????????????? | | ?????????????????????????????????????????????????? | | ?????????????????????????????????????????????????? | +----------------------------------------------------+ Best States ------------- Heat Dissipation 25 Energy Generation 10 Energy Capacity 250 Matter Stores 300 Matter Capacity 300 Sight Range 16 Terrain Scan Density 10 Armor Coverage 150 Evasion (%) 62 Item Schematics ----------------- None Robot Schematics ------------------ None Fabricated ------------ Nothing Repaired ---------- Nothing Studied --------- None Alien Tech Used ----------------- None Achievements -------------- None Challenges ------------ None Game ------ Seed AlphaHeartMachine Manual? 0 Play Time 00:40:06 Cumulative 91.9 hours Start 2025.12.04 @ 17:36:48 End 2025.12.30 @ 06:26:31 Sessions 3 Manual Loads 0 Difficulty Rogue Special Mode None Game No. 65 Rogue 65 Adventurer 0 Explorer 0 Win Type - Total 0 Types 0/0/0/0/0/0/0/0/0/0 Lore% 48 Gallery% 46 Achievement% 33 Wizard Run 0 Options --------- Layout 1 ASCII 0 Keyboard 0 Movement Mouse Keybinds 0 Fullscreen 1 Font 32/SmallcapsGlow Map View 50x40 Zoom Use 0% Tactical HUD 0 Map Filters NONE Filters NONE Steam 1 RUN: 81630cef-3a63-4396-b020-4212a91440b0